[Event "Torneo Nuevo Centro. Jornada 11"]
[Site "Chess.com"]
[Date "2020.08.28"]
[Round "5"]
[White "Muñoz Pantoja, Miguel"]
[Black "Sos Andreu, Eric"]
[Result "1-0"]
[WhiteElo "2552"]
[BlackElo "2513"]
[TimeControl "180+2"]
[EndTime "11:23:50 PDT"]
[Termination "Victoria de Indalsa por tiempo"]

1. e4 {[%clk 0:03:01.9]} 1... c6 {[%clk 0:03:00.9]} 2. Nc3 {[%clk 0:03:02.9]}
2... d5 {[%clk 0:03:02.2]} 3. Nf3 {[%clk 0:03:04.5]} 3... Nf6 {[%clk 0:03:02.6]}
4. e5 {[%clk 0:03:04.5]} 4... Ne4 {[%clk 0:03:04]} 5. Nxe4 {[%clk 0:03:05.4]}
5... dxe4 {[%clk 0:03:05.9]} 6. Ng5 {[%clk 0:03:06.7]} 6... Bf5 {[%clk
0:03:07.1]} 7. Qe2 {[%clk 0:03:06.2]} 7... Qd5 {[%clk 0:03:06.3]} 8. g4 {[%clk
0:03:06.3]} 8... Bg6 {[%clk 0:03:03.6]} 9. Bg2 {[%clk 0:03:06.8]} 9... Qxe5
{[%clk 0:02:55.3]} 10. Nxe4 {[%clk 0:03:07.8]} 10... Nd7 {[%clk 0:02:52.7]} 11.
d3 {[%clk 0:03:05.9]} 11... Bxe4 {[%clk 0:02:45.1]} 12. Bxe4 {[%clk 0:03:06.6]}
12... e6 {[%clk 0:02:42.5]} 13. c3 {[%clk 0:03:02.7]} 13... Qc7 {[%clk
0:02:39.7]} 14. Be3 {[%clk 0:02:54.7]} 14... Bd6 {[%clk 0:02:38.5]} 15. h4
{[%clk 0:02:44.1]} 15... Bf4 {[%clk 0:02:36.1]} 16. O-O-O {[%clk 0:02:44.7]}
16... Bxe3+ {[%clk 0:02:36.7]} 17. Qxe3 {[%clk 0:02:45.7]} 17... Qb6 {[%clk
0:02:23.3]} 18. d4 {[%clk 0:02:32.1]} 18... O-O-O {[%clk 0:02:21]} 19. g5 {[%clk
0:02:29.5]} 19... Qa5 {[%clk 0:02:08.8]} 20. Kb1 {[%clk 0:02:28.1]} 20... Nb6
{[%clk 0:02:09.9]} 21. Rhe1 {[%clk 0:02:04]} 21... h6 {[%clk 0:01:34]} 22. g6
{[%clk 0:02:03.8]} 22... f6 {[%clk 0:01:28.2]} 23. Bc2 {[%clk 0:01:55.2]} 23...
Rhe8 {[%clk 0:01:25.9]} 24. Qh3 {[%clk 0:01:55.1]} 24... Qd5 {[%clk 0:00:57.9]}
25. Bb3 {[%clk 0:01:54]} 25... Nc4 {[%clk 0:00:57]} 26. Qd3 {[%clk 0:01:41.4]}
26... b5 {[%clk 0:00:49]} 27. Bc2 {[%clk 0:01:34.3]} 27... Kb8 {[%clk
0:00:39.9]} 28. Qg3+ {[%clk 0:01:25.4]} 28... Qd6 {[%clk 0:00:39.4]} 29. Qf3
{[%clk 0:01:26.4]} 29... Kc7 {[%clk 0:00:35.8]} 30. h5 {[%clk 0:01:21.6]} 30...
a5 {[%clk 0:00:34]} 31. Bd3 {[%clk 0:01:19.4]} 31... Nb6 {[%clk 0:00:33.9]} 32.
Bf1 {[%clk 0:01:08.7]} 32... Re7 {[%clk 0:00:34.4]} 33. Bg2 {[%clk 0:01:09.3]}
33... a4 {[%clk 0:00:31.9]} 34. Rd2 {[%clk 0:01:03.7]} 34... Nd5 {[%clk
0:00:23.1]} 35. Rc2 {[%clk 0:00:56.6]} 35... Nb6 {[%clk 0:00:22.7]} 36. Rce2
{[%clk 0:00:51]} 36... Rde8 {[%clk 0:00:23.7]} 37. Bh3 {[%clk 0:00:47.3]} 37...
e5 {[%clk 0:00:17.3]} 38. Qg3 {[%clk 0:00:47.8]} 38... Nc4 {[%clk 0:00:16]} 39.
Bf5 {[%clk 0:00:46.1]} 39... Kb7 {[%clk 0:00:05.1]} 40. Bd3 {[%clk 0:00:45.9]}
40... Nb6 {[%clk 0:00:04.5]} 41. Be4 {[%clk 0:00:44.3]} 41... Qc7 {[%clk
0:00:03.8]} 42. Bg2 {[%clk 0:00:38.9]} 42... Ka7 {[%clk 0:00:03.5]} 43. b3
{[%clk 0:00:35.2]} 43... axb3 {[%clk 0:00:03.8]} 44. axb3 {[%clk 0:00:35.8]}
44... Kb7 {[%clk 0:00:05.7]} 45. Qd3 {[%clk 0:00:20.9]} 45... Kb8 {[%clk
0:00:02.8]} 46. dxe5 {[%clk 0:00:21.1]} 46... Rxe5 {[%clk 0:00:04.1]} 47. Rxe5
{[%clk 0:00:22.2]} 47... Rxe5 {[%clk 0:00:05]} 48. Rxe5 {[%clk 0:00:23.2]} 48...
Qxe5 {[%clk 0:00:04.5]} 49. Bxc6 {[%clk 0:00:24.1]} 49... Qe1+ {[%clk
0:00:05.1]} 50. Kc2 {[%clk 0:00:23.6]} 50... Qxf2+ {[%clk 0:00:06.1]} 51. Qd2
{[%clk 0:00:24.8]} 51... Qf5+ {[%clk 0:00:07.2]} 52. Kb2 {[%clk 0:00:25.4]}
52... Qc5 {[%clk 0:00:07.5]} 53. Qd8+ {[%clk 0:00:26]} 53... Nc8 {[%clk
0:00:04.5]} 54. Qd7 {[%clk 0:00:27.2]} 54... Qf2+ {[%clk 0:00:02.9]} 55. Ka3
{[%clk 0:00:28.5]} 55... Qa7+ {[%clk 0:00:03.9]} 56. Kb4 {[%clk 0:00:29.5]}
56... Qxd7 {[%clk 0:00:04.7]} 57. Bxd7 {[%clk 0:00:31.1]} 57... Nd6 {[%clk
0:00:05.8]} 58. Bxb5 {[%clk 0:00:30.4]} 58... Kc7 {[%clk 0:00:04.3]} 59. Be2
{[%clk 0:00:31.2]} 59... Ne4 {[%clk 0:00:04.9]} 60. Bf3 {[%clk 0:00:28]} 60...
Ng5 {[%clk 0:00:03.5]} 61. Bg2 {[%clk 0:00:27.8]} 61... f5 {[%clk 0:00:04.8]}
62. Kc5 {[%clk 0:00:28.5]} 62... f4 {[%clk 0:00:04.3]} 63. Kd4 {[%clk
0:00:29.5]} 63... f3 {[%clk 0:00:05.4]} 64. Bf1 {[%clk 0:00:29]} 64... Kd6
{[%clk 0:00:03.6]} 65. c4 {[%clk 0:00:29.7]} 1

[Event "Torneo Nuevo Centro. Jornada 11"]
[Site "Chess.com"]
[Date "2020.08.28"]
[Round "5"]
[White "Montesinos Diaz, Luis"]
[Black "Gómez Alonso, Óscar"]
[Result "1/2-1/2"]
[WhiteElo "1895"]
[BlackElo "1805"]
[TimeControl "180+2"]
[EndTime "11:24:15 PDT"]
[Termination "Partida en tablas por material insuficiente"]

1. d4 {[%clk 0:03:01.9]} 1... Nf6 {[%clk 0:03:00.7]} 2. Nf3 {[%clk 0:02:59.5]}
2... d5 {[%clk 0:02:57.1]} 3. e3 {[%clk 0:02:56.5]} 3... g6 {[%clk 0:02:56.9]}
4. b4 {[%clk 0:02:54.9]} 4... Bg7 {[%clk 0:02:57.7]} 5. Bb2 {[%clk 0:02:56]}
5... O-O {[%clk 0:02:58.6]} 6. c4 {[%clk 0:02:56.7]} 6... c6 {[%clk 0:02:58.6]}
7. Nbd2 {[%clk 0:02:56.6]} 7... Bg4 {[%clk 0:02:55.4]} 8. Be2 {[%clk 0:02:57.1]}
8... Nbd7 {[%clk 0:02:53.8]} 9. O-O {[%clk 0:02:57]} 9... Re8 {[%clk 0:02:53.6]}
10. a4 {[%clk 0:02:54.6]} 10... Ne4 {[%clk 0:02:43.9]} 11. Nxe4 {[%clk
0:02:46.1]} 11... dxe4 {[%clk 0:02:44.5]} 12. Nd2 {[%clk 0:02:47.1]} 12... Bxe2
{[%clk 0:02:44.8]} 13. Qxe2 {[%clk 0:02:49]} 13... e5 {[%clk 0:02:44.2]} 14. Nb3
{[%clk 0:02:44.6]} 14... exd4 {[%clk 0:02:44.1]} 15. Bxd4 {[%clk 0:02:33.3]}
15... Ne5 {[%clk 0:02:32.4]} 16. Rfd1 {[%clk 0:02:26.1]} 16... Qe7 {[%clk
0:02:30.3]} 17. Nc5 {[%clk 0:02:12]} 17... f5 {[%clk 0:02:09.2]} 18. h3 {[%clk
0:01:50.4]} 18... b6 {[%clk 0:02:09.9]} 19. Bxe5 {[%clk 0:01:40]} 19... Bxe5
{[%clk 0:01:49.7]} 20. Rab1 {[%clk 0:00:39.5]} 20... bxc5 {[%clk 0:01:47.3]} 21.
bxc5 {[%clk 0:00:41.4]} 21... Rab8 {[%clk 0:01:44.3]} 22. Qc2 {[%clk 0:00:31.7]}
22... Qxc5 {[%clk 0:01:37.9]} 23. Rd7 {[%clk 0:00:21.3]} 23... Re7 {[%clk
0:01:27.5]} 24. Rxb8+ {[%clk 0:00:17.6]} 24... Bxb8 {[%clk 0:01:27.9]} 25. Rd8+
{[%clk 0:00:18.6]} 25... Kf7 {[%clk 0:01:24.4]} 26. Rxb8 {[%clk 0:00:18.7]}
26... Rd7 {[%clk 0:01:21.9]} 27. Kh2 {[%clk 0:00:18]} 27... Qd6+ {[%clk
0:01:21.7]} 28. g3 {[%clk 0:00:14.7]} 28... c5 {[%clk 0:01:12.2]} 29. Rb5 {[%clk
0:00:14.2]} 29... Rc7 {[%clk 0:00:58.6]} 30. Qc3 {[%clk 0:00:11.7]} 30... a6
{[%clk 0:00:38.5]} 31. Rb2 {[%clk 0:00:12.2]} 31... Rd7 {[%clk 0:00:37.8]} 32.
Qh8 {[%clk 0:00:12.1]} 32... Ke6 {[%clk 0:00:37.5]} 33. Qe8+ {[%clk 0:00:12.2]}
33... Qe7 {[%clk 0:00:37.4]} 34. Qxe7+ {[%clk 0:00:12.3]} 34... Kxe7 {[%clk
0:00:38.4]} 35. Rb6 {[%clk 0:00:13.1]} 35... Ra7 {[%clk 0:00:39.3]} 36. Rc6
{[%clk 0:00:13.2]} 36... Rb7 {[%clk 0:00:36.1]} 37. Rxc5 {[%clk 0:00:13.7]}
37... Kd6 {[%clk 0:00:37.2]} 38. Rd5+ {[%clk 0:00:14.1]} 38... Kc6 {[%clk
0:00:38.3]} 39. Re5 {[%clk 0:00:14.8]} 39... Rb2 {[%clk 0:00:33.9]} 40. Kg2
{[%clk 0:00:15.2]} 40... Ra2 {[%clk 0:00:34]} 41. Re7 {[%clk 0:00:15.5]} 41...
Rxa4 {[%clk 0:00:34]} 42. Rxh7 {[%clk 0:00:16.3]} 42... Rxc4 {[%clk 0:00:34.8]}
43. h4 {[%clk 0:00:17]} 43... Kb6 {[%clk 0:00:34.8]} 44. Rh6 {[%clk 0:00:17.9]}
44... Rc6 {[%clk 0:00:35.8]} 45. h5 {[%clk 0:00:18.1]} 45... gxh5 {[%clk
0:00:35.4]} 46. Rxh5 {[%clk 0:00:19.4]} 46... Rc5 {[%clk 0:00:36.6]} 47. Rh8
{[%clk 0:00:19.7]} 47... a5 {[%clk 0:00:37.4]} 48. Rb8+ {[%clk 0:00:20.3]} 48...
Ka6 {[%clk 0:00:38.2]} 49. f3 {[%clk 0:00:21]} 49... a4 {[%clk 0:00:36.2]} 50.
fxe4 {[%clk 0:00:21.4]} 50... fxe4 {[%clk 0:00:37.4]} 51. g4 {[%clk 0:00:22.2]}
51... Ra5 {[%clk 0:00:36.9]} 52. Kg3 {[%clk 0:00:23.3]} 52... a3 {[%clk
0:00:38]} 53. Rb1 {[%clk 0:00:24.3]} 53... a2 {[%clk 0:00:39]} 54. Ra1 {[%clk
0:00:25.6]} 54... Kb6 {[%clk 0:00:40.2]} 55. Kf4 {[%clk 0:00:26.4]} 55... Ra4
{[%clk 0:00:40.8]} 56. g5 {[%clk 0:00:27.3]} 56... Kc7 {[%clk 0:00:42.2]} 57. g6
{[%clk 0:00:26.3]} 57... Kd7 {[%clk 0:00:43.6]} 58. Kf5 {[%clk 0:00:26.1]} 58...
Ke7 {[%clk 0:00:44.6]} 59. Kg5 {[%clk 0:00:26.7]} 59... Kf8 {[%clk 0:00:45.4]}
60. Kh6 {[%clk 0:00:26.9]} 60... Kg8 {[%clk 0:00:46.5]} 61. Rd1 {[%clk
0:00:22.6]} 61... Ra8 {[%clk 0:00:47.3]} 62. Ra1 {[%clk 0:00:22.3]} 62... Kh8
{[%clk 0:00:40.5]} 63. g7+ {[%clk 0:00:18.1]} 63... Kg8 {[%clk 0:00:41.5]} 64.
Kg6 {[%clk 0:00:19.3]} 64... Ra6+ {[%clk 0:00:42.1]} 65. Kf5 {[%clk 0:00:20.7]}
65... Ra4 {[%clk 0:00:41.3]} 66. Kf6 {[%clk 0:00:19.8]} 66... Ra5 {[%clk
0:00:38.4]} 67. Kg6 {[%clk 0:00:14.1]} 67... Ra6+ {[%clk 0:00:30.3]} 68. Kf5
{[%clk 0:00:13.8]} 68... Kxg7 {[%clk 0:00:29.4]} 69. Kxe4 {[%clk 0:00:13.5]}
69... Kf6 {[%clk 0:00:29.9]} 70. Kd3 {[%clk 0:00:14.2]} 70... Ke5 {[%clk
0:00:31]} 71. Kc3 {[%clk 0:00:14.9]} 71... Ra3+ {[%clk 0:00:31.6]} 72. Kb2
{[%clk 0:00:15.1]} 72... Rxe3 {[%clk 0:00:32.7]} 73. Rxa2 {[%clk 0:00:15.5]}
73... Re2+ {[%clk 0:00:33.7]} 74. Kb3 {[%clk 0:00:15.7]} 74... Rxa2 {[%clk
0:00:35.2]} 75. Kxa2 {[%clk 0:00:17.6]} 1/2-1

[Event "Torneo Nuevo Centro. Jornada 11"]
[Site "Chess.com"]
[Date "2020.08.28"]
[Round "6"]
[White "Alvarez Usina, Jordi"]
[Black "Fitzpatrick Dimas, Kevin"]
[Result "1-0"]
[WhiteElo "1268"]
[BlackElo "838"]
[TimeControl "180+2"]
[EndTime "11:26:39 PDT"]
[Termination "Victoria de jordi_alvarez por abandono"]

1. d4 {[%clk 0:03:01.9]} 1... d5 {[%clk 0:02:59.9]} 2. Bf4 {[%clk 0:03:01.9]}
2... Nc6 {[%clk 0:02:57.7]} 3. e3 {[%clk 0:03:02.5]} 3... Nf6 {[%clk 0:02:55.5]}
4. Nf3 {[%clk 0:03:03]} 4... e6 {[%clk 0:02:54.3]} 5. Nbd2 {[%clk 0:02:58.4]}
5... Bd6 {[%clk 0:02:53.8]} 6. Bg3 {[%clk 0:02:58.2]} 6... Bxg3 {[%clk
0:02:53.3]} 7. hxg3 {[%clk 0:02:58.2]} 7... e5 {[%clk 0:02:54.5]} 8. dxe5 {[%clk
0:02:55.9]} 8... Ne4 {[%clk 0:02:53.9]} 9. c3 {[%clk 0:02:45.9]} 9... Bg4 {[%clk
0:02:53.3]} 10. Be2 {[%clk 0:02:39.3]} 10... Bxf3 {[%clk 0:02:53.3]} 11. Nxf3
{[%clk 0:02:39]} 11... Nd2 {[%clk 0:02:54.7]} 12. Qxd2 {[%clk 0:02:38.4]} 12...
O-O {[%clk 0:02:53.5]} 13. Qd3 {[%clk 0:02:36.4]} 13... Re8 {[%clk 0:02:49.4]}
14. O-O-O {[%clk 0:02:15]} 1

[Event "Torneo Nuevo Centro. Jornada 11"]
[Site "Chess.com"]
[Date "2020.08.28"]
[Round "6"]
[White "Ainsa Jimenez, Lucas"]
[Black "del Campo Hernández, Ángel "]
[Result "0-1"]
[WhiteElo "1137"]
[BlackElo "1145"]
[TimeControl "180+2"]
[EndTime "11:26:56 PDT"]
[Termination "Victoria de kawales090 por jaque mate"]

1. e4 {[%clk 0:01:51.2]} 1... c5 {[%clk 0:02:58.8]} 2. Nf3 {[%clk 0:01:51.6]}
2... d6 {[%clk 0:02:59.5]} 3. Bc4 {[%clk 0:01:52.5]} 3... e6 {[%clk 0:02:59.3]}
4. O-O {[%clk 0:01:51.5]} 4... Nc6 {[%clk 0:02:59.6]} 5. d3 {[%clk 0:01:52.3]}
5... Na5 {[%clk 0:02:53.5]} 6. Nc3 {[%clk 0:01:52.2]} 6... Nxc4 {[%clk
0:02:53.1]} 7. dxc4 {[%clk 0:01:53.2]} 7... Nf6 {[%clk 0:02:51]} 8. e5 {[%clk
0:01:53.7]} 8... Ng4 {[%clk 0:02:46.1]} 9. exd6 {[%clk 0:01:52.3]} 9... Qxd6
{[%clk 0:02:44.4]} 10. Nd2 {[%clk 0:01:42.3]} 10... Qxh2# {[%clk 0:02:43.1]} 0

[Event "Torneo Nuevo Centro. Jornada 11"]
[Site "Chess.com"]
[Date "2020.08.28"]
[Round "6"]
[White "Aguado, Pablo Luis"]
[Black "Gutierrez Marco, Dario"]
[Result "1-0"]
[WhiteElo "1930"]
[BlackElo "1828"]
[TimeControl "180+2"]
[EndTime "11:27:18 PDT"]
[Termination "Victoria de PLAD_2006 por abandono"]

1. d4 {[%clk 0:03:01.9]} 1... Nf6 {[%clk 0:03:00.2]} 2. c4 {[%clk 0:03:00.1]}
2... c5 {[%clk 0:03:01.5]} 3. d5 {[%clk 0:03:00.4]} 3... e6 {[%clk 0:03:02.4]}
4. Nc3 {[%clk 0:02:59]} 4... exd5 {[%clk 0:03:02.8]} 5. cxd5 {[%clk 0:03:00.9]}
5... d6 {[%clk 0:03:03.8]} 6. Nf3 {[%clk 0:03:00.3]} 6... g6 {[%clk 0:03:02.4]}
7. Nd2 {[%clk 0:03:01.3]} 7... Bg7 {[%clk 0:03:03.1]} 8. e4 {[%clk 0:03:02.3]}
8... O-O {[%clk 0:03:03.6]} 9. Be2 {[%clk 0:03:03.1]} 9... a6 {[%clk 0:03:05.1]}
10. a4 {[%clk 0:03:03.6]} 10... Re8 {[%clk 0:03:06.1]} 11. O-O {[%clk
0:03:03.3]} 11... Nbd7 {[%clk 0:03:06.7]} 12. Nc4 {[%clk 0:02:51.7]} 12... Ne5
{[%clk 0:03:03.8]} 13. f4 {[%clk 0:02:48.5]} 13... Nxc4 {[%clk 0:03:02.7]} 14.
Bxc4 {[%clk 0:02:50.4]} 14... Nxe4 {[%clk 0:03:01.6]} 15. Nxe4 {[%clk 0:02:51]}
15... Rxe4 {[%clk 0:03:03]} 16. Qc2 {[%clk 0:02:44.9]} 16... Re7 {[%clk
0:02:43.4]} 17. Bd3 {[%clk 0:02:41.4]} 17... Rb8 {[%clk 0:02:33.1]} 18. f5
{[%clk 0:02:42.3]} 18... Bd4+ {[%clk 0:02:27.1]} 19. Kh1 {[%clk 0:02:42.3]}
19... b5 {[%clk 0:02:24.7]} 20. fxg6 {[%clk 0:02:37.8]} 20... fxg6 {[%clk
0:02:23.9]} 21. Bg5 {[%clk 0:02:38.8]} 21... Qe8 {[%clk 0:02:21.9]} 22. Bxe7
{[%clk 0:02:38.9]} 22... Qxe7 {[%clk 0:02:23]} 23. Rae1 {[%clk 0:02:39.5]} 23...
Qg7 {[%clk 0:02:23.1]} 24. Re8+ {[%clk 0:02:37.1]} 1

[Event "Torneo Nuevo Centro. Jornada 11"]
[Site "Chess.com"]
[Date "2020.08.28"]
[Round "6"]
[White "Casado Andreu, David"]
[Black "Miranda Calvo, Max Rodrigo"]
[Result "1-0"]
[WhiteElo "1570"]
[BlackElo "1300"]
[TimeControl "180+2"]
[EndTime "11:27:36 PDT"]
[Termination "Victoria de dave6635 por abandono"]

1. e4 {[%clk 0:03:01.9]} 1... e5 {[%clk 0:03:00]} 2. Nf3 {[%clk 0:03:03]} 2...
Nc6 {[%clk 0:02:59.4]} 3. Bc4 {[%clk 0:03:04.3]} 3... Bc5 {[%clk 0:02:58.5]} 4.
c3 {[%clk 0:03:05.5]} 4... d6 {[%clk 0:02:57.7]} 5. Bb3 {[%clk 0:03:05.7]} 5...
Bg4 {[%clk 0:02:55.2]} 6. d3 {[%clk 0:03:05.3]} 6... Nge7 {[%clk 0:02:53]} 7. h3
{[%clk 0:03:06.7]} 7... Bxf3 {[%clk 0:02:51.2]} 8. Qxf3 {[%clk 0:03:08.6]} 8...
O-O {[%clk 0:02:52.1]} 9. O-O {[%clk 0:02:59.9]} 9... Ng6 {[%clk 0:02:46.8]} 10.
Re1 {[%clk 0:02:49.4]} 10... Qd7 {[%clk 0:02:34.5]} 11. Nd2 {[%clk 0:02:44.5]}
11... Rad8 {[%clk 0:02:24.5]} 12. Nf1 {[%clk 0:02:44.6]} 12... a6 {[%clk
0:02:16.7]} 13. Ng3 {[%clk 0:02:44.3]} 13... Nh4 {[%clk 0:02:10.8]} 14. Qh5
{[%clk 0:02:33.7]} 14... Qe7 {[%clk 0:01:58]} 15. Bg5 {[%clk 0:02:32.3]} 15...
Qe6 {[%clk 0:01:44.1]} 16. Bxe6 {[%clk 0:02:31.5]} 1

[Event "Torneo Nuevo Centro. Jornada 11"]
[Site "Chess.com"]
[Date "2020.08.28"]
[Round "6"]
[White "Gil López, Alejandro"]
[Black "Roca Cruz, Rafael"]
[Result "1-0"]
[WhiteElo "2200"]
[BlackElo "1808"]
[TimeControl "180+2"]
[EndTime "11:27:42 PDT"]
[Termination "Victoria de AglVal0313 por abandono"]

1. e4 {[%clk 0:03:01.9]} 1... c5 {[%clk 0:03:00.8]} 2. Nf3 {[%clk 0:03:02.4]}
2... e6 {[%clk 0:03:01.9]} 3. c3 {[%clk 0:03:02.5]} 3... d5 {[%clk 0:03:02.8]}
4. exd5 {[%clk 0:03:03.1]} 4... Qxd5 {[%clk 0:03:04.1]} 5. d4 {[%clk 0:03:05]}
5... Nf6 {[%clk 0:03:05]} 6. Be3 {[%clk 0:02:54.8]} 6... cxd4 {[%clk 0:02:55.8]}
7. Qxd4 {[%clk 0:02:48.9]} 7... Nc6 {[%clk 0:02:55.8]} 8. Qxd5 {[%clk
0:02:42.4]} 8... Nxd5 {[%clk 0:02:56.7]} 9. Bd2 {[%clk 0:02:42.5]} 9... Bd6
{[%clk 0:02:49.8]} 10. Bb5 {[%clk 0:02:41.7]} 10... Bd7 {[%clk 0:02:50.2]} 11.
O-O {[%clk 0:02:41.8]} 11... O-O {[%clk 0:02:46.4]} 12. Bg5 {[%clk 0:02:31.7]}
12... a6 {[%clk 0:02:41.2]} 13. Ba4 {[%clk 0:02:30.9]} 13... Bf4 {[%clk
0:02:35.8]} 14. Bxf4 {[%clk 0:02:28.7]} 14... Nxf4 {[%clk 0:02:36.7]} 15. Nbd2
{[%clk 0:02:28.2]} 15... Rfd8 {[%clk 0:02:21.6]} 16. Rad1 {[%clk 0:02:22.4]}
16... Ne7 {[%clk 0:02:19.6]} 17. Bxd7 {[%clk 0:02:21]} 17... Rxd7 {[%clk
0:02:20.7]} 18. Nc4 {[%clk 0:02:21.7]} 18... Rd5 {[%clk 0:02:05.8]} 19. Nb6
{[%clk 0:02:16.7]} 19... Rb5 {[%clk 0:02:06.6]} 20. Nxa8 {[%clk 0:02:16.9]} 1

[Event "Torneo Nuevo Centro. Jornada 11"]
[Site "Chess.com"]
[Date "2020.08.28"]
[Round "6"]
[White "Alvarez Usina, Joan"]
[Black "Ortiz Benavent, Alba"]
[Result "0-1"]
[WhiteElo "381"]
[BlackElo "1186"]
[TimeControl "180+2"]
[EndTime "11:27:50 PDT"]
[Termination "Victoria de or20 por abandono"]

1. d4 {[%clk 0:03:01.9]} 1... d5 {[%clk 0:02:59.3]} 2. Bf4 {[%clk 0:02:59.6]}
2... Nf6 {[%clk 0:02:59.6]} 3. e3 {[%clk 0:02:43.6]} 3... Bf5 {[%clk 0:02:54.9]}
4. h4 {[%clk 0:02:38.6]} 4... h5 {[%clk 0:02:52.3]} 5. f3 {[%clk 0:02:37.5]}
5... e6 {[%clk 0:02:49.6]} 6. Bd3 {[%clk 0:02:15.1]} 6... Bxd3 {[%clk
0:02:45.9]} 7. Qxd3 {[%clk 0:02:13.5]} 7... c6 {[%clk 0:02:35.2]} 8. Bxb8 {[%clk
0:02:07.4]} 8... Rxb8 {[%clk 0:02:31.8]} 9. e4 {[%clk 0:02:03.8]} 9... Qa5+
{[%clk 0:02:24.3]} 10. c3 {[%clk 0:02:01.8]} 10... Nd7 {[%clk 0:02:11.3]} 11. b4
{[%clk 0:01:58.1]} 11... Qc7 {[%clk 0:02:03.2]} 12. Ne2 {[%clk 0:01:51]} 12...
Nb6 {[%clk 0:02:00.1]} 0

[Event "Torneo Nuevo Centro. Jornada 11"]
[Site "Chess.com"]
[Date "2020.08.28"]
[Round "6"]
[White "Castellano López, Javier"]
[Black "Donate Peris, Jose Manuel"]
[Result "1-0"]
[WhiteElo "1930"]
[BlackElo "1521"]
[TimeControl "180+2"]
[EndTime "11:27:54 PDT"]
[Termination "Victoria de its_xavi_official por abandono"]

1. e4 {[%clk 0:03:01.9]} 1... e6 {[%clk 0:02:59.4]} 2. Qe2 {[%clk 0:03:02.2]}
2... c5 {[%clk 0:02:57]} 3. g3 {[%clk 0:03:00.7]} 3... Nc6 {[%clk 0:02:57.6]} 4.
Nf3 {[%clk 0:03:01.1]} 4... g6 {[%clk 0:02:54.8]} 5. Bg2 {[%clk 0:03:01]} 5...
Bg7 {[%clk 0:02:55.1]} 6. c3 {[%clk 0:03:02.5]} 6... Nge7 {[%clk 0:02:53.2]} 7.
O-O {[%clk 0:03:03]} 7... O-O {[%clk 0:02:53.2]} 8. d3 {[%clk 0:03:03.5]} 8...
Rb8 {[%clk 0:02:50.3]} 9. Be3 {[%clk 0:03:04.9]} 9... b6 {[%clk 0:02:50]} 10.
Nbd2 {[%clk 0:03:04.9]} 10... Bb7 {[%clk 0:02:50.8]} 11. Rac1 {[%clk 0:02:52.7]}
11... Re8 {[%clk 0:02:51.4]} 12. Rfd1 {[%clk 0:02:53.7]} 12... d5 {[%clk
0:02:51.7]} 13. d4 {[%clk 0:02:39.2]} 13... cxd4 {[%clk 0:02:39.1]} 14. Nxd4
{[%clk 0:02:40.3]} 14... Nxd4 {[%clk 0:02:38.7]} 15. Bxd4 {[%clk 0:02:40.3]}
15... dxe4 {[%clk 0:02:24.6]} 16. Bxg7 {[%clk 0:02:40]} 16... Kxg7 {[%clk
0:02:19.9]} 17. Nxe4 {[%clk 0:02:40.8]} 17... Qc7 {[%clk 0:02:15.1]} 18. Nd6
{[%clk 0:02:34.6]} 18... Red8 {[%clk 0:02:04.9]} 19. Nxb7 {[%clk 0:02:32.6]}
19... Rxd1+ {[%clk 0:02:01.2]} 20. Rxd1 {[%clk 0:02:31.8]} 20... Rxb7 {[%clk
0:02:01.9]} 21. Bxb7 {[%clk 0:02:32]} 21... Qxb7 {[%clk 0:02:02.4]} 22. Qe5+
{[%clk 0:02:33.5]} 22... f6 {[%clk 0:01:53.9]} 23. Qxe6 {[%clk 0:02:33.4]} 1

[Event "Torneo Nuevo Centro. Jornada 11"]
[Site "Chess.com"]
[Date "2020.08.28"]
[Round "6"]
[White "Donate Moreno, Silvia"]
[Black "Macias Pino, Diego"]
[Result "0-1"]
[WhiteElo "1862"]
[BlackElo "2259"]
[TimeControl "180+2"]
[EndTime "11:28:02 PDT"]
[Termination "Victoria de adivinaquiensoy por abandono"]

1. e4 {[%clk 0:03:01.9]} 1... c6 {[%clk 0:03:00.5]} 2. d4 {[%clk 0:03:02.7]}
2... d5 {[%clk 0:03:02.4]} 3. exd5 {[%clk 0:03:03.9]} 3... cxd5 {[%clk
0:03:04.3]} 4. Bd3 {[%clk 0:03:05.3]} 4... Nc6 {[%clk 0:03:04.6]} 5. c3 {[%clk
0:03:06.3]} 5... Nf6 {[%clk 0:03:05.3]} 6. Bf4 {[%clk 0:03:07]} 6... Bg4 {[%clk
0:03:05.4]} 7. Qb3 {[%clk 0:03:05.8]} 7... Qc8 {[%clk 0:03:05.7]} 8. Nd2 {[%clk
0:03:04.3]} 8... e6 {[%clk 0:03:06.4]} 9. h3 {[%clk 0:03:02.7]} 9... Bh5 {[%clk
0:03:07.2]} 10. Ngf3 {[%clk 0:03:03.4]} 10... Bg6 {[%clk 0:03:07.1]} 11. Bxg6
{[%clk 0:02:56.2]} 11... hxg6 {[%clk 0:03:09]} 12. O-O {[%clk 0:02:52.2]} 12...
Be7 {[%clk 0:03:09.4]} 13. Rfe1 {[%clk 0:02:51.9]} 13... a6 {[%clk 0:03:10.5]}
14. a4 {[%clk 0:02:51.9]} 14... O-O {[%clk 0:03:10.6]} 15. a5 {[%clk 0:02:50]}
15... Bd8 {[%clk 0:02:56.1]} 16. c4 {[%clk 0:02:34.4]} 16... Nxa5 {[%clk
0:02:48.7]} 17. Qb4 {[%clk 0:02:26.9]} 17... Nxc4 {[%clk 0:02:30.7]} 18. Nxc4
{[%clk 0:02:21.9]} 18... dxc4 {[%clk 0:02:21.7]} 19. Rac1 {[%clk 0:02:21.7]}
19... Nd5 {[%clk 0:02:00.6]} 20. Qd6 {[%clk 0:02:14.8]} 20... Bc7 {[%clk
0:01:53.7]} 0

[Event "Torneo Nuevo Centro. Jornada 11"]
[Site "Chess.com"]
[Date "2020.08.28"]
[Round "6"]
[White "Echeverria, Nestor"]
[Black "Más Ripoll, Vicente"]
[Result "1-0"]
[WhiteElo "1961"]
[BlackElo "1072"]
[TimeControl "180+2"]
[EndTime "11:28:39 PDT"]
[Termination "Victoria de noquierotablas por abandono"]

1. e4 {[%clk 0:02:59.4]} 1... c5 {[%clk 0:02:59.3]} 2. Nf3 {[%clk 0:02:55.8]}
2... e6 {[%clk 0:02:58.5]} 3. d4 {[%clk 0:02:53.5]} 3... cxd4 {[%clk 0:02:59.1]}
4. Nxd4 {[%clk 0:02:53.1]} 4... Nc6 {[%clk 0:02:59.2]} 5. Be3 {[%clk 0:02:53.1]}
5... a6 {[%clk 0:02:54.6]} 6. Nc3 {[%clk 0:02:53.6]} 6... Nf6 {[%clk 0:02:53.4]}
7. f3 {[%clk 0:02:53.6]} 7... e5 {[%clk 0:02:51.2]} 8. Nf5 {[%clk 0:02:53.8]}
8... d6 {[%clk 0:02:43.3]} 9. Bc4 {[%clk 0:02:52.1]} 9... Bxf5 {[%clk
0:02:39.2]} 10. exf5 {[%clk 0:02:52.7]} 10... Qd7 {[%clk 0:02:30]} 11. g4 {[%clk
0:02:53]} 11... h6 {[%clk 0:02:14.6]} 12. O-O {[%clk 0:02:52.7]} 12... h5 {[%clk
0:01:58.7]} 13. g5 {[%clk 0:02:52.3]} 13... Ng8 {[%clk 0:01:50.6]} 14. g6 {[%clk
0:02:39.3]} 14... f6 {[%clk 0:01:11.3]} 15. Be6 {[%clk 0:02:37.9]} 15... Qd8
{[%clk 0:00:58.8]} 16. Nd5 {[%clk 0:02:37.9]} 16... Nge7 {[%clk 0:00:47.9]} 17.
Bb6 {[%clk 0:02:36.4]} 1